bitfinex-derivatives/quotes_SOLF0:USTF0_20241026
["timestamp","ask_amount","ask_price","bid_price","bid_amount"]
[1729940951372,8.19939318,168.61,168.56,4.82]
[1729940951576,8.19939318,168.61,168.55,11.16879318]
[1729940951778,8.19939318,168.61,168.56,2.9693]
[1729940952773,8.19939318,168.62,168.57,8.19939318]
[1729940953171,8.19939318,168.63,168.58,2.969]
[1729940953570,248.70532266,168.71,168.56,4.84]
[1729940953773,248.70532266,168.71,168.59,11.16819318]
[1729940953774,8.19939318,168.64,168.59,11.16819318]
[1729940954168,8.19939318,168.64,168.59,2.9688]
[1729940954378,248.70532266,168.71,168.58,12.82867912]
[1729940954574,12.82867912,168.68,168.59,2.9687]
[1729940954777,12.82867912,168.68,168.57,2.5137]
[1729940955081,12.82867912,168.68,168.59,2.9687]
[1729940955267,12.82867912,168.65,168.59,2.9687]
[1729940956480,12.82867912,168.65,168.57,2.5137]
[1729940956481,2.968,168.64,168.57,2.5137]
[1729940956678,4.84,168.7,168.57,15.34237912]
[1729940956873,12.82867912,168.67,168.57,15.34237912]
[1729940957476,4.84,168.7,168.59,12.82867912]
[1729940957778,12.82867912,168.69,168.6,4.84]
[1729940957984,12.82867912,168.67,168.57,20.18237912]
[1729940959278,15.79617912,168.67,168.6,2.9687]
[1729940959882,4.84,168.7,168.57,20.18237912]
[1729940960177,12.82867912,168.68,168.57,20.18237912]
[1729940960485,12.82867912,168.67,168.57,20.18237912]
[1729940961382,15.79607912,168.67,168.6,2.9687]
[1729940962785,15.79607912,168.67,168.61,2.9685]
[1729940963571,1.2894,168.71,168.62,12.82867912]
[1729940963777,4.84,168.78,168.65,12.82867912]
[1729940964080,12.82867912,168.76,168.66,4.84]
[1729940964380,12.82867912,168.74,168.65,12.82867912]
[1729940964584,12.82867912,168.74,168.66,4.84]
[1729940964786,15.79457912,168.76,168.69,2.9671]
[1729940965683,15.79457912,168.76,168.7,2.9669]
[1729940966385,12.82867912,168.74,168.68,2.9672]
[1729940967488,2.9665,168.73,168.68,2.9672]
[1729940967979,15.79547912,168.71,168.62,1.2082]
[1729940968179,15.79547912,168.71,168.65,7.8077]
[1729940968573,15.79547912,168.71,168.66,2.9676]
[1729940970380,2.9661,168.75,168.69,2.967]
[1729940970579,15.79477912,168.75,168.69,2.967]
[1729940971179,15.79477912,168.75,168.7,2.9669]
[1729940975086,12.82867912,168.75,168.66,12.82867912]
[1729940975889,2.9662,168.75,168.69,2.967]
[1729940976087,12.82867912,168.74,168.69,2.967]
[1729940976690,15.79487912,168.74,168.69,2.967]
[1729940978995,2.9666,168.72,168.66,8.0475]
[1729940979192,12.82867912,168.69,168.62,1.2082]
[1729940979393,2.9673,168.68,168.63,2.968]
[1729940981094,2.967,168.7,168.65,2.9677]
[1729940982592,2.9667,168.71,168.66,2.9676]
[1729940983693,12.82867912,168.72,168.64,1.2041]
[1729940983891,2.967,168.7,168.64,4.1719]
[1729940985494,2.967,168.7,168.65,2.9678]
[1729940988099,12.82867912,168.72,168.64,1.2041]
[1729940988300,2.9668,168.71,168.66,2.9676]
[1729940988497,12.82867912,168.72,168.64,1.2041]
[1729940989697,2.9672,168.69,168.64,4.172]
[1729940989897,12.82867912,168.72,168.64,1.2041]
[1729940990297,2.9669,168.71,168.65,2.9676]
[1729940990903,2.9669,168.71,168.66,2.9676]
[1729940993405,2.9669,168.71,168.64,1.2041]
[1729940993711,2.9669,168.71,168.67,2.9674]
[1729940994411,8.20348936,168.7,168.67,2.9674]
[1729940998912,8.20348936,168.69,168.65,2.9676]
[1729941000313,8.20348936,168.68,168.64,2.9679]
[1729941000513,8.20348936,168.68,168.63,5.08]
[1729941000514,8.20348936,168.68,168.63,8.20348936]
[1729941001105,11.17088936,168.68,168.63,11.17158936]
[1729941001904,8.20348936,168.68,168.63,11.17158936]
[1729941002811,11.17058936,168.69,168.64,8.20348936]
[1729941003316,252.43542009,168.74,168.62,6.2882]
[1729941003615,8.20348936,168.71,168.66,8.20348936]
[1729941003913,11.17038936,168.71,168.66,8.20348936]
[1729941004116,8.20348936,168.69,168.65,2.9676]
[1729941006006,11.17058936,168.69,168.64,2.9679]
[1729941006317,8.20348936,168.7,168.65,8.20348936]
[1729941006816,8.20348936,168.71,168.66,8.20348936]
[1729941008310,8.20348936,168.71,168.67,2.9674]
[1729941008710,2.9666,168.72,168.67,2.9674]
[1729941009119,11.17008936,168.72,168.67,2.9674]
[1729941010618,2.9666,168.72,168.68,2.9672]
[1729941010918,8.20348936,168.71,168.66,13.12348936]
[1729941011306,8.20348936,168.71,168.67,5.16850311]
[1729941011510,11.17018936,168.71,168.66,7.8876]
[1729941011710,11.17018936,168.71,168.67,5.16859114]
[1729941012007,11.17018936,168.71,168.66,16.09108936]
[1729941012210,11.17018936,168.71,168.67,5.16859133]
[1729941012518,8.20348936,168.7,168.66,11.17108936]
[1729941013410,11.17038936,168.7,168.66,11.17108936]
[1729941013717,8.20348936,168.7,168.66,11.17108936]
[1729941013919,252.27542009,168.74,168.66,11.17108936]
[1729941014113,8.20348936,168.71,168.67,5.16896774]
[1729941014417,8.20348936,168.71,168.66,11.17108936]
[1729941014619,8.20348936,168.71,168.67,5.16911122]
[1729941014916,8.20348936,168.71,168.66,11.17108936]
[1729941015117,8.20348936,168.71,168.67,5.16905265]
[1729941015317,11.17028936,168.71,168.66,11.17108936]
[1729941015514,11.17028936,168.71,168.67,5.16913504]
[1729941015817,11.17028936,168.71,168.66,11.17108936]
[1729941016018,11.17028936,168.71,168.67,5.16915252]
[1729941016318,11.17028936,168.71,168.66,11.17108936]
[1729941016612,2.9667,168.72,168.67,2.9674]
[1729941016816,8.20348936,168.71,168.66,8.20348936]
[1729941017008,8.20348936,168.71,168.67,5.1692487]
[1729941017209,8.20348936,168.71,168.66,8.20348936]
[1729941017414,8.20348936,168.71,168.67,5.16921184]
[1729941017610,8.20348936,168.71,168.66,8.20348936]
[1729941017816,8.20348936,168.71,168.67,5.16921641]
[1729941018011,8.20348936,168.71,168.66,8.20348936]
[1729941018212,11.17038936,168.71,168.67,5.16921641]
[1729941018418,11.17038936,168.71,168.66,11.17108936]
[1729941018618,11.17038936,168.71,168.67,5.16931952]
[1729941018919,11.17038936,168.71,168.66,11.17108936]
[1729941019219,11.17038936,168.71,168.67,5.16931952]
[1729941019411,11.17038936,168.71,168.66,11.17108936]
[1729941019614,11.17038936,168.71,168.67,5.1696273]
[1729941019822,11.17038936,168.71,168.66,11.17108936]
[1729941020023,11.17038936,168.71,168.67,5.16961887]
[1729941020318,11.17038936,168.71,168.66,11.17108936]
[1729941020519,11.17038936,168.71,168.67,5.17037784]
[1729941020820,11.17038936,168.71,168.66,11.17108936]
[1729941021017,11.17038936,168.71,168.67,5.17036211]
[1729941021223,11.17038936,168.71,168.67,11.17088936]
[1729941021613,8.20348936,168.71,168.67,8.20348936]
[1729941021818,8.20348936,168.71,168.68,2.9672]
[1729941022528,11.17028936,168.71,168.66,2.9674]
[1729941022727,11.17028936,168.71,168.67,5.17267569]
[1729941023028,11.17028936,168.71,168.68,5.17267569]
[1729941023233,11.17028936,168.71,168.66,11.17088936]
[1729941023529,11.17028936,168.71,168.67,5.17328818]
[1729941023729,11.17028936,168.71,168.68,5.17328818]
[1729941024028,11.17028936,168.71,168.66,11.17088936]
[1729941024223,11.17028936,168.71,168.67,5.17330777]
[1729941024430,11.17028936,168.71,168.66,11.17088936]
[1729941024725,11.17028936,168.71,168.67,5.17374064]
[1729941024928,11.17028936,168.71,168.68,5.17374064]
[1729941025126,11.17028936,168.71,168.66,11.17088936]
[1729941025326,11.17028936,168.71,168.67,5.17424054]
[1729941025526,11.17028936,168.71,168.68,5.17424054]
[1729941025728,11.17028936,168.71,168.66,11.17088936]
[1729941025928,11.17028936,168.71,168.67,5.17424226]
[1729941026129,11.17028936,168.71,168.68,5.17424226]
[1729941026329,11.17028936,168.71,168.66,11.17088936]
[1729941026636,11.17028936,168.71,168.67,5.17433662]
[1729941026930,11.17028936,168.71,168.68,5.17433662]
[1729941027235,11.17028936,168.71,168.66,11.17088936]
[1729941027437,11.17028936,168.71,168.67,5.17507289]
[1729941027732,11.17028936,168.71,168.68,5.17507289]
[1729941027940,11.17028936,168.71,168.66,11.17088936]
[1729941028327,11.17028936,168.71,168.67,5.1751614]
[1729941028532,11.17028936,168.71,168.68,5.1751614]
[1729941028733,11.17028936,168.71,168.66,11.17088936]
[1729941029038,11.17028936,168.71,168.67,5.17560026]
[1729941029234,11.17028936,168.71,168.68,5.17560026]
[1729941029447,11.17028936,168.71,168.66,11.17088936]
[1729941029738,11.17028936,168.71,168.67,5.17617625]
[1729941029931,11.17028936,168.71,168.68,5.17617625]
[1729941030132,11.17028936,168.71,168.66,11.17088936]
[1729941030335,11.17028936,168.71,168.67,5.17691242]
[1729941030531,11.17028936,168.71,168.68,5.17691242]
[1729941030726,2.9668,168.71,168.69,5.17691242]
[1729941030926,11.17028936,168.71,168.66,11.17088936]
[1729941031137,11.17028936,168.71,168.67,5.17690703]
[1729941031344,11.17028936,168.71,168.68,5.17690703]
[1729941031531,11.17028936,168.71,168.69,5.17690703]
[1729941031833,11.17028936,168.71,168.66,11.17088936]
[1729941032242,11.17028936,168.71,168.67,5.17753012]
[1729941032442,11.17028936,168.71,168.68,5.17753012]
[1729941032738,11.17028936,168.71,168.69,5.17753012]
[1729941032938,11.17028936,168.71,168.66,11.17088936]
[1729941033238,11.17028936,168.71,168.67,5.17850579]
[1729941033439,11.17028936,168.71,168.68,5.17850579]
[1729941033640,11.17028936,168.71,168.69,5.17850579]
[1729941033839,11.17028936,168.71,168.66,11.17088936]
[1729941034043,11.17028936,168.71,168.67,5.17879721]
[1729941034228,11.17028936,168.71,168.68,5.17879721]
[1729941034434,11.17028936,168.71,168.69,5.17879721]
[1729941034637,11.17028936,168.71,168.66,11.17088936]
[1729941034830,11.17028936,168.71,168.67,5.17905741]
[1729941035032,11.17028936,168.71,168.68,5.17905741]
[1729941035232,11.17028936,168.71,168.69,5.17905741]
[1729941035432,11.17028936,168.71,168.66,11.17088936]
[1729941035629,11.17028936,168.71,168.67,5.1793944]
[1729941035830,247.35542009,168.74,168.67,8.20348936]
[1729941036035,247.35542009,168.74,168.69,8.20348936]
[1729941036235,247.35542009,168.74,168.7,5.1793944]
[1729941036437,247.35542009,168.74,168.71,5.1793944]
[1729941036735,247.35542009,168.74,168.69,8.20348936]
[1729941036935,247.35542009,168.74,168.7,5.1785755]
[1729941037243,247.35542009,168.74,168.71,5.1785755]
[1729941037432,247.35542009,168.74,168.7,8.20348936]
[1729941037742,8.20348936,168.78,168.72,8.20348936]
[1729941038140,8.20348936,168.78,168.73,8.20348936]
[1729941038442,8.20348936,168.79,168.75,8.20348936]
[1729941038838,11.16888936,168.79,168.75,8.20348936]
[1729941039042,8.20348936,168.79,168.75,8.20348936]
[1729941039239,8.20348936,168.79,168.72,2.5645]
[1729941039441,8.20348936,168.79,168.75,8.20348936]
[1729941039940,1.2987,168.83,168.77,8.20348936]
[1729941040136,8.20348936,168.82,168.77,8.20348936]
[1729941040545,13.64376705,168.93,168.77,8.20348936]
[1729941040741,8.20348936,168.83,168.77,8.20348936]
[1729941040943,8.20348936,168.84,168.79,8.20348936]
[1729941041446,8.20348936,168.84,168.79,12.92348936]
[1729941041850,8.20348936,168.81,168.73,1.2597]
[1729941042049,8.20348936,168.81,168.76,8.20348936]
[1729941042953,8.20348936,168.81,168.77,8.20348936]
[1729941043249,8.20348936,168.83,168.78,8.20348936]
[1729941043450,8.20348936,168.83,168.78,12.92348936]
[1729941043655,11.16818936,168.83,168.78,12.92348936]
[1729941045047,2.9647,168.83,168.78,15.88898936]
[1729941046649,8.20348936,168.84,168.78,12.92348936]
[1729941046954,8.20348936,168.83,168.78,12.92348936]
[1729941047849,8.20348936,168.79,168.74,5.15588272]
[1729941048051,8.20348936,168.79,168.75,4.72]
[1729941048244,8.20348936,168.77,168.73,9.46318936]
[1729941048445,8.20348936,168.77,168.74,4.72]
[1729941050555,11.16898936,168.79,168.74,4.72]
[1729941050859,2.9655,168.78,168.74,4.72]
[1729941051751,8.20348936,168.79,168.74,4.72]
[1729941051948,11.16888936,168.79,168.74,7.6862]
[1729941053451,11.16888936,168.79,168.74,15.88968936]
[1729941053650,2.9654,168.79,168.74,15.88968936]
[1729941054060,2.9654,168.79,168.76,8.20348936]
[1729941054758,2.9652,168.8,168.77,8.20348936]
[1729941054962,8.20348936,168.82,168.77,8.20348936]
[1729941055154,8.20348936,168.82,168.78,11.16898936]
[1729941055460,2.9647,168.83,168.78,11.16898936]
[1729941056349,1.2705,168.87,168.73,1.2597]
[1729941056350,2.9636,168.89,168.84,2.9644]
[1729941056555,8.20348936,168.9,168.84,15.88788936]
[1729941056760,8.20348936,168.9,168.86,8.20348936]
[1729941058060,8.20348936,168.91,168.86,8.20348936]
[1729941058258,2.9635,168.9,168.86,8.20348936]
[1729941058854,8.20348936,168.91,168.86,8.20348936]
[1729941059049,8.20348936,168.91,168.86,12.92348936]
[1729941059255,8.20348936,168.91,168.86,8.20348936]
[1729941060262,2.9636,168.89,168.86,8.20348936]
[1729941063351,11.16688936,168.9,168.86,8.20348936]
[1729941063555,2.9634,168.9,168.86,8.20348936]
[1729941064354,8.20348936,168.91,168.86,8.20348936]
[1729941064553,11.16668936,168.91,168.86,8.20348936]
[1729941064757,4.66,168.95,168.87,8.20348936]
[1729941065066,8.20348936,168.93,168.87,8.20348936]
[1729941065265,2.9631,168.92,168.87,11.16718936]
[1729941065453,248.28384021,168.97,168.89,8.20348936]
[1729941065658,8.20348936,168.95,168.89,8.20348936]
[1729941065859,8.20348936,168.92,168.86,1.2658]
[1729941066064,8.20348936,168.91,168.86,9.46928936]
[1729941066261,11.16708936,168.9,168.86,8.20348936]
[1729941066569,8.20348936,168.9,168.86,4.66]
[1729941066959,2.9638,168.88,168.84,8.20348936]
[1729941067159,8.20348936,168.85,168.8,2.5106]
[1729941067464,8.20348936,168.85,168.81,4.66]
[1729941067664,8.20348936,168.87,168.81,12.86348936]
[1729941067860,8.20348936,168.88,168.83,8.20348936]
[1729941068264,11.16738936,168.88,168.83,8.20348936]
[1729941068558,8.20348936,168.88,168.82,2.9646]
[1729941068758,8.20348936,168.87,168.82,11.16808936]
[1729941068967,11.16748936,168.87,168.82,11.16808936]
[1729941072164,11.16748936,168.87,168.82,2.9646]
[1729941072367,11.16748936,168.87,168.82,11.16808936]
[1729941080879,2.964,168.87,168.82,11.16808936]
[1729941082571,2.964,168.87,168.83,8.20348936]
[1729941088580,2.964,168.87,168.83,11.16808936]
[1729941090492,2.964,168.87,168.83,8.20348936]
[1729941091392,2.964,168.87,168.83,11.16808936]
[1729941093886,11.16748936,168.87,168.83,2.9646]
[1729941094087,11.16748936,168.87,168.82,11.16828936]
[1729941098787,2.9645,168.84,168.8,4.52]
[1729941098988,8.20348936,168.83,168.78,1.2161]
[1729941099294,8.20348936,168.82,168.78,1.2161]
[1729941100296,2.9651,168.81,168.78,1.2161]
[1729941103784,8.20348936,168.82,168.78,1.2161]
[1729941103785,4.52,168.88,168.78,1.2161]
[1729941103987,11.16818936,168.83,168.78,1.2161]
[1729941105301,11.16818936,168.83,168.78,4.1815]
[1729941111013,8.20348936,168.86,168.8,11.16858936]
[1729941111213,8.20348936,168.86,168.81,8.20348936]
[1729941111508,8.20348936,168.87,168.81,8.20348936]
[1729941111905,8.20348936,168.87,168.82,2.9648]
[1729941112506,8.20348936,168.87,168.83,8.20348936]
[1729941112801,7.4836,168.89,168.83,8.20348936]
[1729941113007,15.68708936,168.89,168.84,2.9644]
[1729941113208,11.16708936,168.89,168.84,11.16788936]
[1729941114210,2.9636,168.89,168.84,11.16788936]
[1729941114414,2.9636,168.89,168.84,15.68788936]
[1729941121424,11.16708936,168.89,168.84,15.68788936]
[1729941127132,2.9639,168.88,168.84,4.52]
[1729941127942,11.16738936,168.88,168.84,4.52]
[1729941129030,8.20348936,168.85,168.78,1.2161]
[1729941129232,2.9648,168.83,168.78,1.2161]
[1729941129533,8.20348936,168.79,168.74,7.0247]
[1729941129735,8.20348936,168.75,168.67,57.6]
[1729941129930,1.2434,168.86,168.68,20.30945385]
[1729941129931,8.20348936,168.74,168.68,20.30945385]
[1729941130127,8.20348936,168.74,168.69,5.16976449]
[1729941130335,8.20348936,168.71,168.7,5.16976449]
[1729941130537,8.20348936,168.71,168.68,2.4762]
[1729941130832,8.20348936,168.71,168.66,12.66348936]
[1729941131037,8.20348936,168.71,168.67,5.16807047]
[1729941131235,2.9665,168.73,168.68,8.20348936]
[1729941131539,11.16958936,168.75,168.69,8.20348936]
[1729941132231,11.16958936,168.75,168.67,4.1682]
[1729941132431,11.16958936,168.75,168.69,8.20348936]
[1729941133635,11.16958936,168.75,168.67,2.9673]
[1729941133636,12.20874318,168.74,168.67,2.9673]
[1729941133840,8.20348936,168.73,168.68,8.20348936]
[1729941134238,12.20874318,168.72,168.66,4.46]
[1729941134541,11.16988936,168.73,168.66,5.05728646]
[1729941134841,11.16988936,168.73,168.68,8.20348936]
[1729941135034,11.16988936,168.73,168.68,1.41311403]
[1729941135738,2.9664,168.73,168.68,1.41311403]
[1729941136929,2.9664,168.73,168.67,2.9674]
[1729941136930,2.9664,168.73,168.7,8.20348936]
[1729941140540,11.16968936,168.74,168.7,8.20348936]
[1729941140940,2.9662,168.74,168.7,8.20348936]
[1729941142445,7.4259,168.76,168.71,8.20348936]
[1729941143140,7.4259,168.76,168.67,3.778]
[1729941143141,2.9655,168.79,168.74,8.20348936]
[1729941143546,2.9655,168.79,168.76,8.20348936]
[1729941144537,12.66348936,168.81,168.76,8.20348936]
[1729941145050,8.20348936,168.8,168.76,8.20348936]
[1729941146440,2.9653,168.79,168.76,8.20348936]
[1729941147743,2.9653,168.79,168.74,8.20348936]
[1729941149650,2.9653,168.79,168.74,11.16958936]
[1729941149851,8.20348936,168.8,168.74,11.16958936]
[1729941151943,8.20348936,168.8,168.74,8.20348936]
[1729941151944,2.9654,168.79,168.74,8.20348936]
[1729941158249,4.46,168.81,168.74,8.20348936]
[1729941158451,8.20348936,168.8,168.74,8.20348936]
[1729941159245,8.20348936,168.76,168.68,9.66290541]
[1729941159447,8.20348936,168.75,168.7,8.20348936]
[1729941161350,11.16968936,168.75,168.7,11.17038936]
[1729941162451,2.9662,168.74,168.7,8.20348936]
[1729941164352,8.20348936,168.75,168.7,8.20348936]
[1729941164353,2.9661,168.75,168.7,11.17028936]
[1729941164862,2.9661,168.75,168.7,8.20348936]
[1729941164863,2.9662,168.75,168.7,8.20348936]
[1729941165051,8.20348936,168.76,168.7,8.20348936]
[1729941165853,2.9661,168.75,168.72,8.20348936]
[1729941167464,2.9661,168.75,168.71,8.20348936]
[1729941171764,4.46,168.77,168.72,8.20348936]
[1729941171965,12.66348936,168.77,168.72,8.20348936]
[1729941172359,2.9661,168.75,168.71,8.20348936]
[1729941173757,2.9661,168.75,168.7,2.9669]
[1729941173758,8.20348936,168.74,168.7,2.9669]
[1729941173965,8.20348936,168.74,168.7,11.17038936]
[1729941174963,8.20348936,168.73,168.67,1.1934]
[1729941175169,2.9669,168.71,168.67,1.1934]
[1729941175370,8.20348936,168.69,168.64,4.46]
[1729941175564,8.20348936,168.69,168.62,2.5709]
[1729941175565,8.20348936,168.68,168.62,6.8581]
[1729941175864,8.20348936,168.68,168.63,8.20348936]
[1729941176070,8.20348936,168.68,168.63,11.17148936]
[1729941176364,12.66348936,168.72,168.67,8.20348936]
[1729941176665,2.9665,168.73,168.69,8.20348936]
[1729941177060,12.66348936,168.75,168.69,8.20348936]
[1729941178259,2.9663,168.74,168.69,8.20348936]
[1729941179963,11.16978936,168.74,168.69,8.20348936]
[1729941180868,8.20348936,168.73,168.69,8.20348936]
[1729941184372,8.20348936,168.73,168.68,2.9672]
[1729941184575,8.20348936,168.73,168.68,11.17068936]
[1729941185760,8.20348936,168.73,168.68,2.9672]
[1729941185967,8.20348936,168.73,168.68,11.17068936]
[1729941189480,8.20348936,168.73,168.68,2.9672]
[1729941191679,11.16988936,168.73,168.68,2.9672]
[1729941192976,2.9664,168.73,168.69,8.20348936]
[1729941193878,4.46,168.75,168.69,8.20348936]
[1729941194082,12.66348936,168.75,168.7,8.20348936]
[1729941195293,2.9663,168.74,168.7,8.20348936]
[1729941196075,2.9663,168.74,168.68,2.9672]
[1729941196275,11.16978936,168.74,168.69,8.20348936]
[1729941196681,2.9664,168.73,168.69,8.20348936]
[1729941202881,8.20348936,168.74,168.65,4.46]
[1729941203086,8.20348936,168.74,168.68,8.20348936]
[1729941204089,11.16978936,168.74,168.68,11.17068936]
[1729941204992,11.16978936,168.74,168.69,8.20348936]
[1729941205583,2.9663,168.74,168.7,8.20348936]
[1729941205900,12.66348936,168.76,168.7,8.20348936]
[1729941206095,2.9664,168.74,168.7,8.20348936]
[1729941206287,2.9664,168.74,168.69,9.49198936]
[1729941208487,11.16988936,168.74,168.69,9.49198936]
[1729941213598,11.16948936,168.75,168.71,8.20348936]
[1729941214697,4.46,168.77,168.72,8.20348936]
[1729941215197,7.4255,168.78,168.73,11.16978936]
[1729941215403,8.20348936,168.8,168.75,8.20348936]
[1729941216402,2.9654,168.79,168.75,8.20348936]
[1729941217198,11.16868936,168.8,168.75,8.20348936]
[1729941218701,2.9653,168.79,168.75,8.20348936]
[1729941219602,2.9653,168.79,168.73,2.9664]
[1729941219802,8.20348936,168.78,168.73,11.16988936]
[1729941220902,8.20348936,168.79,168.75,2.966]
[1729941221102,8.20348936,168.79,168.73,8.20348936]
[1729941221504,11.16888936,168.79,168.73,11.16968936]
[1729941222102,11.16888936,168.79,168.75,8.20348936]
[1729941222608,8.20348936,168.79,168.75,8.20348936]
[1729941223803,2.9652,168.8,168.75,8.20348936]
[1729941225005,1.2965,168.89,168.79,8.20348936]
[1729941225197,8.20348936,168.87,168.81,8.20348936]
[1729941225904,2.9641,168.86,168.81,8.20348936]
[1729941226104,8.20348936,168.86,168.81,8.20348936]
[1729941226303,2.9643,168.85,168.81,8.20348936]
[1729941227509,11.16778936,168.85,168.79,11.16878936]
[1729941236818,2.9641,168.86,168.81,8.20348936]
[1729941237109,8.20348936,168.88,168.82,8.20348936]
[1729941237715,2.9639,168.87,168.82,8.20348936]
[1729941242020,2.9639,168.87,168.81,2.9648]
[1729941242021,2.9639,168.87,168.84,8.20348936]
[1729941243921,2.9637,168.89,168.84,8.20348936]
[1729941244117,11.16718936,168.89,168.84,8.20348936]
[1729941244325,8.20348936,168.89,168.84,8.20348936]
[1729941244519,2.9638,168.88,168.84,8.20348936]
[1729941248230,11.16788936,168.85,168.79,2.9653]
[1729941248429,11.16788936,168.85,168.8,8.20348936]
[1729941248630,8.20348936,168.85,168.8,8.20348936]
[1729941249530,2.9636,168.89,168.82,2.9647]
[1729941249729,8.20348936,168.87,168.8,8.20348936]
[1729941249930,8.20348936,168.84,168.78,8.20348936]
[1729941250234,8.20348936,168.84,168.79,8.20348936]
[1729941250934,8.20348936,168.85,168.79,8.20348936]
[1729941251134,8.20348936,168.85,168.8,8.20348936]
[1729941251333,11.16788936,168.85,168.8,8.20348936]
[1729941256535,2.9644,168.85,168.8,8.20348936]
[1729941261944,247.16327428,168.88,168.83,11.16808936]
[1729941264951,258.33056364,168.88,168.83,8.20348936]
[1729941265145,8.20348936,168.87,168.82,1.2139]
[1729941266346,11.16748936,168.87,168.82,1.2139]
[1729941269149,11.16748936,168.87,168.83,8.20348936]
[1729941270851,2.964,168.87,168.83,8.20348936]
[1729941274751,11.16748936,168.87,168.81,11.16838936]
[1729941275557,11.16788936,168.85,168.79,15.60868936]
[1729941275956,11.16788936,168.85,168.79,12.64348936]
[1729941276856,2.9644,168.85,168.81,8.20348936]
[1729941280156,2.9644,168.85,168.8,2.9651]
[1729941280157,11.16788936,168.85,168.8,2.9651]
[1729941283760,8.20348936,168.84,168.79,11.16878936]
[1729941287763,11.16788936,168.85,168.8,8.20348936]
[1729941288663,2.9644,168.85,168.8,8.20348936]
[1729941292363,2.9644,168.85,168.8,11.16858936]
[1729941294482,12.64348936,168.86,168.8,11.16858936]
[1729941294772,15.60758936,168.86,168.8,11.16858936]
[1729941295666,11.16758936,168.86,168.8,11.16858936]
[1729941300075,2.9641,168.86,168.82,8.20348936]
[1729941300269,4.44,168.88,168.83,8.20348936]
[1729941300474,1.2652,168.93,168.86,8.20348936]
[1729941300674,57.62,168.95,168.87,8.20348936]
[1729941300978,12.64348936,168.94,168.88,8.20348936]
[1729941301171,8.20348936,168.94,168.88,8.20348936]
[1729941301772,8.20348936,168.93,168.88,8.20348936]
[1729941304176,8.20348936,168.91,168.86,4.44]
[1729941304377,8.20348936,168.89,168.85,2.9642]
[1729941304577,8.20348936,168.89,168.79,2.5287]
[1729941304774,8.20348936,168.84,168.8,5.80831837]
[1729941304982,8.20348936,168.84,168.79,10.73218936]
[1729941305584,8.20348936,168.84,168.79,2.5287]
[1729941307380,11.16808936,168.84,168.79,2.5287]
[1729941309082,8.20348936,168.84,168.79,2.5287]
[1729941309783,8.20348936,168.83,168.79,1.2091]
[1729941309984,8.20348936,168.83,168.78,8.20348936]
[1729941310480,1.2411,168.85,168.75,11.16948936]
[1729941310685,8.20348936,168.8,168.76,11.20134075]
[1729941310874,8.20348936,168.8,168.75,11.16948936]
[1729941311076,8.20348936,168.8,168.76,11.20158178]
[1729941311277,8.20348936,168.8,168.75,11.16948936]
[1729941311476,8.20348936,168.8,168.76,9.71785484]
[1729941311677,8.20348936,168.8,168.75,11.16948936]
[1729941311887,8.20348936,168.8,168.76,9.71793336]
[1729941312072,8.20348936,168.8,168.75,11.16948936]
[1729941312273,11.16868936,168.8,168.76,9.71744537]
[1729941312472,11.16868936,168.8,168.75,11.16948936]
[1729941312675,11.16868936,168.8,168.76,9.71745356]
[1729941312879,11.16868936,168.8,168.75,11.16948936]
[1729941313084,11.16868936,168.8,168.76,9.71738589]
[1729941313281,11.16868936,168.8,168.75,11.16948936]
[1729941313484,11.16868936,168.8,168.76,9.71709011]
[1729941313681,11.16868936,168.8,168.75,11.16948936]
[1729941313887,11.16868936,168.8,168.76,9.71710856]
[1729941314085,11.16868936,168.8,168.75,11.16948936]
[1729941314287,11.16868936,168.8,168.76,9.71673752]
[1729941314489,11.16868936,168.8,168.75,11.16948936]
[1729941314694,11.16868936,168.8,168.76,4.32622097]
[1729941314886,11.16868936,168.8,168.76,5.39051437]
[1729941315091,11.16868936,168.8,168.75,11.16948936]
[1729941315291,11.16868936,168.8,168.76,9.71642954]
[1729941315498,11.16868936,168.8,168.75,11.16948936]
[1729941315784,11.16868936,168.8,168.76,9.71642954]
[1729941315995,11.16868936,168.8,168.75,11.16948936]
[1729941316191,11.16868936,168.8,168.76,9.71622996]
[1729941316387,11.16868936,168.8,168.75,11.16948936]
[1729941316586,4.44,168.82,168.78,8.20348936]
[1729941316783,12.64348936,168.85,168.79,8.20348936]
[1729941317597,15.60778936,168.85,168.79,8.20348936]
[1729941319399,15.60778936,168.85,168.79,11.16868936]
[1729941322691,15.60778936,168.85,168.79,2.9652]
[1729941322896,15.60778936,168.85,168.79,11.16868936]
[1729941324097,7.4043,168.85,168.79,11.16868936]
[1729941324295,8.20348936,168.84,168.79,11.16868936]
[1729941326305,8.20348936,168.84,168.79,8.20348936]